Cogmind - Beta 10.1 @@@ ROGUE MODE // 2020.09.24 @ 20:43:35 Player: AM Result: Self-destructed Performance ------------- Evolutions (3) 1500 Regions Visited (6) 1200 Robots Destroyed (16) 80 Value Destroyed (343) 343 Prototype IDs (0) 0 Alien Tech Used (0) 0 Bonus (35) 35 TOTAL SCORE: 3158 Bonus ------- Follower Combat Kills 35 Cogmind --------- Core Integrity 633/700 Matter 180/300 Energy 580/580 System Corruption 10% Temperature Cool (0) Movement Walking (150) Ox1 Location -7/Factory Parts ------- > --- POWER (2) -------- Improved Deuterium Engine Improved Deuterium Engine > --- PROPULSION (4) --- Improved Carbon-fiber Leg Improved Carbon-fiber Leg Gravmag System Gravmag System > --- UTILITY (5) ------ Small Storage Unit Small Battery Hardened Heavy Armor Plating > --- WEAPON (2) ------- Heavy EM Pulse Gun > --- INVENTORY (6) ---- (None) Peak State ------------ > --- POWER ------------ Improved Deuterium Engine Improved Deuterium Engine > --- PROPULSION ------- Gravmag System Gravmag System Gravmag System Gravmag System > --- UTILITY ---------- Small Storage Unit Small Battery Structural Scanner Hardened Heavy Armor Plating > --- WEAPON ----------- Particle Cannon Particle Cannon > --- INVENTORY -------- Improved Carbon-fiber Leg Improved Carbon-fiber Leg Heavy EM Pulse Gun [Rating: 40] Favorites ----------- Power Light Ion Engine Engine Light Ion Engine Propulsion Aluminum Leg Leg Aluminum Leg Hover Unit Gravmag System Utility Small Storage Unit Device Structural Scanner Storage Small Storage Unit Protection Hardened Heavy Armor Plating Weapon Heavy EM Pulse Gun Energy Gun Heavy EM Pulse Gun Energy Cannon Particle Cannon Ballistic Gun Assault Rifle Build | -11 -10 -10 -9 -9 -8 -7 ------- Run | Scr Mat Min Mat Min Mat Fac Slots Evolved 6 | . . . 2 . 2 2 Power 1 | . . . . . 1 . Propulsion 2 | . . . 2 . . . Utility 3 | . . . . . 1 2 Weapon . | . . . . . . . Parts Attached 30 | 7 . 3 6 3 6 5 Power 5 | 2 . . . 1 2 . Engine 5 | 2 . . . 1 2 . Core . | . . . . . . . Reactor . | . . . . . . . Propulsion 11 | 2 . . 3 . 4 2 Treads . | . . . . . . . Leg 7 | 2 . . 3 . . 2 Wheel . | . . . . . . . Hover 4 | . . . . . 4 . Flight . | . . . . . . . Utility 4 | 1 . 1 . . . 2 Device 1 | . . 1 . . . . Storage 2 | 1 . . . . . 1 Processor . | . . . . . . . Hackware . | . . . . . . . Protection 1 | . . . . . . 1 Artifact . | . . . . . . . Weapon 10 | 2 . 2 3 2 . 1 Energy Gun 6 | 2 . . 3 . . 1 Energy Cannon 2 | . . . . 2 . . Ballistic Gun 2 | . . 2 . . . . Ballistic Cannon . | . . . . . . . Launcher . | . . . . . . . Special Weapon . | . . . . . . . Impact Weapon . | . . . . . . . Slashing Weapon . | . . . . . . . Piercing Weapon . | . . . . . . . Special Melee Weapon . | . . . . . . . Unidentified Prototypes . | . . . . . . . Parts Lost 7 | . . 2 . . . 5 Power . | . . . . . . . Propulsion 2 | . . . . . . 2 Utility 1 | . . . . . . 1 Weapon 4 | . . 2 . . . 2 Highest Loss Streak 5 | . . 2 . . . 5 Average Slot Usage (%) 92 | . 85 98 93 100 86 76 Engine 12 | . 14 14 11 11 14 15 Leg 28 | . 28 28 38 44 12 1 Hover 5 | . . . . . 24 25 Device 10 | . . 13 11 11 9 2 Storage 12 | . 14 14 11 11 9 15 Energy Gun 12 | . 28 15 20 1 . . Energy Cannon 5 | . . . . 20 18 7 Ballistic Gun 3 | . . 11 . . . . Naked Turns . | . . . . . . . Heaviest Build 54 | 11 11 12 14 18 33 54 Greatest Support 44 | 20 20 20 43 43 44 44 Greatest Overweight (x) 2 | . . . . . . 2 Average Overweight (x) . | . . . . . . . Largest Inventory Capacity 6 | 6 6 6 6 6 6 6 Average Capacity 5 | 5 6 6 6 6 6 6 Most Carried 6 | 3 3 4 6 5 6 5 Average Carried 3 | 1 1 2 5 2 2 2 Final Capacity 6 | 6 6 6 6 6 6 6 Final Carried 5 | 1 3 3 5 2 2 . Class Distribution -------------------- 100% | Mutant Dominant Class ---------------- Mutant | -10/Materials Mutant | -10/Mines Mutant | -9/Materials Mutant | -9/Mines Mutant | -8/Materials Mutant | -7/Factory Resources | -11 -10 -10 -9 -9 -8 -7 ----------- Run | Scr Mat Min Mat Min Mat Fac Matter Collected 364 | 205 . 99 60 . . . Remotely . | . . . . . . . Salvage Created 706 | 66 . 167 389 . . 84 Parts 36 | 3 . 13 17 . . 3 Haulers Intercepted . | . . . . . . . Recyclers Shooed 1 | . . 1 . . . . Parts Field Recycled . | . . . . . . . Retrieved Matter . | . . . . . . . Parts Self-Destructed . | . . . . . . . Prevented . | . . . . . . . Kills | -11 -10 -10 -9 -9 -8 -7 ------- Run | Scr Mat Min Mat Min Mat Fac Combat Hostiles Destroyed 12 | . . 6 6 . . . Guns 8 | . . 6 2 . . . AOE 4 | . . . 4 . . . Classes Destroyed 4 | 1 . 1 2 . . . Recycler 4 | 1 . 1 1 . . 1 Swarmer 6 | . . 6 . . . . Grunt 4 | . . . 4 . . . Sentry 2 | . . . 2 . . . Best Kill Streak 4 | 1 . 4 4 . . 1 Combat Bots Only 4 | . . 3 4 . . . Max Kills in Single Turn 2 | 1 . 1 2 . . 1 Gunslinging . | . . . . . . . Exploded 2 | . . . 2 . . . Melee . | . . . . . . . Uniques/NPCs Destroyed . | . . . . . . . Combat | -11 -10 -10 -9 -9 -8 -7 -------- Run | Scr Mat Min Mat Min Mat Fac Damage Taken 1368 | 40 . 274 309 . 133 612 Core 210 | 40 . 60 13 . 30 67 Absorbed by Shields . | . . . . . . . Core Remaining (%) 83 | 84 . 60 . 96 94 . Volleys Fired 33 | 1 . 15 12 . 1 4 Largest 2 | 2 . 2 2 . 2 1 Hottest 136 | 80 . 80 90 . 136 68 Shots Fired 62 | 2 . 30 24 . 2 4 Gun 58 | 2 . 30 24 . . 2 Cannon 4 | . . . . . 2 2 Launcher . | . . . . . . . Special . | . . . . . . . Kinetic 8 | . . 8 . . . . Thermal 4 | . . . . . 2 2 Explosive . | . . . . . . . Electromagnetic 50 | 2 . 22 24 . . 2 Robot Hit Streak 5 | 2 . 5 4 . . 2 Robot Miss Streak 5 | . . 2 1 . 3 5 Penetration Max . | . . . . . . . Secondary Targets . | . . . . . . . Shots Hit Robots 39 | 2 . 19 16 . . 2 Core Hits 23 | 1 . 11 10 . . 1 Critical Hits . | . . . . . . . Critical Kills . | . . . . . . . Critical Parts Destroyed . | . . . . . . . Melee Attacks . | . . . . . . . Impact . | . . . . . . . Slashing . | . . . . . . . Piercing . | . . . . . . . Sneak Attacks . | . . . . . . . Combat Hostiles . | . . . . . . . Follow-up Attacks . | . . . . . . . Damage Inflicted 936 | 58 . 204 607 . 20 47 Guns 531 | 15 . 191 298 . . 27 Cannons 40 | . . . . . 20 20 Explosions 352 | 43 . . 309 . . . Melee . | . . . . . . . Ramming 13 | . . 13 . . . . Kinetic 48 | . . 48 . . . . Thermal 392 | 43 . . 309 . 20 20 Explosive . | . . . . . . . Electromagnetic 483 | 15 . 143 298 . . 27 Impact . | . . . . . . . Slashing . | . . . . . . . Piercing . | . . . . . . . Highest Corruption 10 | . . 2 . . . 10 Average Corruption 4 | . . 2 . . . 5 Corruption Purged . | . . . . . . . Effects 2 | . . . . . . 2 Matter Fused 1 | . . . . . . 1 Data Loss (minor) 1 | . . . . . . 1 Overload Shots . | . . . . . . . Overflow Damage . | . . . . . . . Projectiles . | . . . . . . . Explosions . | . . . . . . . Melee . | . . . . . . . Knockbacks . | . . . . . . . Impact . | . . . . . . . Kinetic . | . . . . . . . Secondary . | . . . . . . . Self-Inflicted Damage 158 | 40 . 4 114 . . . Shots 4 | 1 . . 3 . . . Rammed 6 | . . 6 . . . . Targets Rammed 7 | . . 7 . . . . Kicked 1 | . . 1 . . . . Crushed . | . . . . . . . Highest Temperature 216 | 15 . 144 216 . 100 140 Average Temperature 73 | 14 . 62 78 . 67 79 Received Heat Transfer 362 | . . . 90 . 72 200 Siege Activations . | . . . . . . . Robots Corrupted . | . . . . . . . Combat Hostiles . | . . . . . . . Parts Fried 2 | . . 1 1 . . . Impact Corruptions . | . . . . . . . Robots Melted . | . . . . . . . Combat Hostiles . | . . . . . . . Parts Melted . | . . . . . . . Heat Transferred 374 | . . . 300 . 37 37 Parts Sabotaged . | . . . . . . . Parts Stolen . | . . . . . . . Parts Stripped . | . . . . . . . Power Chain Reactions 4 | 1 . . 3 . . . Missiles Intercepted . | . . . . . . . Alert | -11 -10 -10 -9 -9 -8 -7 ------- Run | Scr Mat Min Mat Min Mat Fac Peak Influence 279 | 5 3 140 279 108 89 49 Initial 108 | . 3 . 54 108 41 24 Average 81 | 3 3 89 119 108 54 32 Maximum Alert Level 1 | . . . 1 . . . Low Security (%) 97 | 100 100 100 92 100 100 100 Level 1 2 | . . . 7 . . . Level 2 . | . . . . . . . Level 3 . | . . . . . . . Level 4 . | . . . . . . . Level 5 . | . . . . . . . High Security . | . . . . . . . Max Security . | . . . . . . . Squads Dispatched 4 | . . . 2 . 1 1 Investigation . | . . . . . . . Extermination . | . . . . . . . Reinforcement 4 | . . . 2 . 1 1 Assault . | . . . . . . . Garrison . | . . . . . . . Intercept . | . . . . . . . Construction Impeded . | . . . . . . . Haulers Reinforced . | . . . . . . . Stealth | -11 -10 -10 -9 -9 -8 -7 --------- Run | Scr Mat Min Mat Min Mat Fac Distress Signals 3 | . . . 2 . 1 . Communications Jammed . | . . . . . . . Distress Signals . | . . . . . . . Times Spotted 41 | . . 6 14 . 13 8 Peak Tracking Total 10 | . . 3 8 . 10 8 Tactical Retreats 1 | . . . . . . 1 Traps | -11 -10 -10 -9 -9 -8 -7 ------- Run | Scr Mat Min Mat Min Mat Fac Traps Triggered 1 | . . . . . . 1 Indirectly . | . . . . . . . Trap Hack Attempts . | . . . . . . . Triggered . | . . . . . . . Disarmed . | . . . . . . . Reprogrammed . | . . . . . . . Reused . | . . . . . . . Traps Extracted . | . . . . . . . Installed . | . . . . . . . Triggered . | . . . . . . . Machines | -11 -10 -10 -9 -9 -8 -7 ---------- Run | Scr Mat Min Mat Min Mat Fac Machines Disabled 2 | . . 1 1 . . . Max in Single Turn 1 | . . 1 1 . . . Machines Sabotaged . | . . . . . . . Garrisons Compromised . | . . . . . . . Overloaded Fab Kills . | . . . . . . . Fab Network Shutdowns . | . . . . . . . Hacking | -11 -10 -10 -9 -9 -8 -7 --------- Run | Scr Mat Min Mat Min Mat Fac Machines Accessed . | . . . . . . . Terminals . | . . . . . . . Fabricators . | . . . . . . . Repair Stations . | . . . . . . . Recycling Units . | . . . . . . . Scanalyzers . | . . . . . . . Garrison Access . | . . . . . . . Total Hacks . | . . . . . . . Successful . | . . . . . . . Failed . | . . . . . . . Catastrophic . | . . . . . . . Database Lockouts . | . . . . . . . Manual . | . . . . . . . Terminals . | . . . . . . . Fabricators . | . . . . . . . Repair Stations . | . . . . . . . Recycling Units . | . . . . . . . Scanalyzers . | . . . . . . . Garrison Access . | . . . . . . . Terminal Hacks . | . . . . . . . Fabricator Hacks . | . . . . . . . Repair Station Hacks . | . . . . . . . Recycling Unit Hacks . | . . . . . . . Scanalyzer . | . . . . . . . Garrison Access Hacks . | . . . . . . . Unauthorized Hacks . | . . . . . . . Terminals . | . . . . . . . Fabricators . | . . . . . . . Repair Stations . | . . . . . . . Recycling Units . | . . . . . . . Scanalyzers . | . . . . . . . Garrison Access . | . . . . . . . Data Cores Recovered . | . . . . . . . Used . | . . . . . . . Hacking Detections . | . . . . . . . Full Trace Events . | . . . . . . . Feedback Events . | . . . . . . . Feedback Blocked . | . . . . . . . Robot Schematics Acquired . | . . . . . . . Robots Built . | . . . . . . . Matter . | . . . . . . . Time . | . . . . . . . Total Robot Build Rating . | . . . . . . . Part Schematics Acquired . | . . . . . . . Parts Built . | . . . . . . . Matter . | . . . . . . . Time . | . . . . . . . Total Part Build Rating . | . . . . . . . Parts Repaired . | . . . . . . . Time . | . . . . . . . Parts Recycled . | . . . . . . . Recycled Matter . | . . . . . . . Retrieved Matter . | . . . . . . . Retrieved Components . | . . . . . . . Parts Scanalyzed . | . . . . . . . Part Schematics Acquired . | . . . . . . . Parts Damaged . | . . . . . . . Bothacking | -11 -10 -10 -9 -9 -8 -7 ------------ Run | Scr Mat Min Mat Min Mat Fac Used RIF Installer . | . . . . . . . Robots Hacked . | . . . . . . . Non-combat . | . . . . . . . Combat . | . . . . . . . Robot Hacks Applied . | . . . . . . . Relay Couplers Released . | . . . . . . . Robots Rewired . | . . . . . . . Allies Hacked . | . . . . . . . Hacks Repelled . | . . . . . . . Allies | -11 -10 -10 -9 -9 -8 -7 -------- Run | Scr Mat Min Mat Min Mat Fac Total Allies 3 | . . . . 3 . . Largest Group 3 | . . . . 3 3 . Highest-Rated Group 40 | . . . . 40 40 . Highest-Rated Ally 16 | . . . . 16 16 . Total Orders . | . . . . . . . Ally Attacks 12 | . . . . . 12 . Total Damage 155 | . . . . . 155 . Kills 2 | . . . . . 2 . Allies Corrupted . | . . . . . . . Allies Melted . | . . . . . . . Intel | -11 -10 -10 -9 -9 -8 -7 ------- Run | Scr Mat Min Mat Min Mat Fac Robot Analysis Total . | . . . . . . . Derelict Logs Recovered 1 | . . . . 1 . . Drone Launches . | . . . . . . . Drone Recoveries . | . . . . . . . Exploration | -11 -10 -10 -9 -9 -8 -7 ------------- Run | Scr Mat Min Mat Min Mat Fac Turns Passed 1106 | 56 54 332 305 119 114 126 Spaces Moved 844 | 33 44 228 185 92 149 113 Core 6 | 6 . . . . . . Treads . | . . . . . . . Legs 608 | 27 44 228 185 92 25 7 Wheels . | . . . . . . . Hover 230 | . . . . . 124 106 Flight . | . . . . . . . Fastest Speed 48 | 50 120 120 120 120 48 48 Average Speed 105 | 107 120 120 120 120 60 96 Slowest Speed 176 | 120 120 120 120 120 120 176 Overloaded Moves . | . . . . . . . Propulsion Burnouts . | . . . . . . . Robots Hopped . | . . . . . . . Cave-ins Triggered . | . . . . . . . Exploration Rate (%) 19 | 5 13 36 21 30 24 7 Regions Visited 6 Branch Regions 2 Pre-discovered Areas . | . . . . . . . Known Exits Taken 1 | . . . . . 1 . Unknown Exits Taken 5 | 1 1 1 1 1 . . Scrap Searched . | . . . . . . . Spaces Dug . | . . . . . . . Terrain Destroyed 9 | . . . 9 . . . Melee . | . . . . . . . Projectile . | . . . . . . . AOE 9 | . . . 9 . . . Terrain Rammed . | . . . . . . . Walls Destroyed . | . . . . . . . Machines Disabled . | . . . . . . . Actions | -11 -10 -10 -9 -9 -8 -7 --------- Run | Scr Mat Min Mat Min Mat Fac Total 998 | 51 45 256 250 100 171 125 Wait 38 | 4 . 1 25 3 5 . Move 838 | 32 43 227 184 91 148 113 Hop . | . . . . . . . Pick Up 34 | 7 2 3 13 . 6 3 Fast Attach . | . . . . . . . Attach 20 | 6 . 3 4 . 2 5 Detach 1 | . . . 1 . . . Swap 10 | 1 . . 2 3 4 . Drop 17 | . . . 9 3 5 . Fire 33 | 1 . 15 12 . 1 4 Melee . | . . . . . . . Ram . | . . . . . . . Kick 7 | . . 7 . . . . Crush . | . . . . . . . Escape Stasis . | . . . . . . . Rewire . | . . . . . . . Trap . | . . . . . . . Miscellaneous . | . . . . . . . Route ------- -11/Scrapyard -10/Materials -10/Mines -9/Materials -9/Mines -8/Materials -7/Factory History --------- Turn | Location | Event 20 | -11/Scrapyard | Discovered new exit (range 15) 57 | -11/Scrapyard | Entered Materials 104 | -10/Materials | Discovered new exit (range 3) 111 | -10/Materials | Entered Mines 329 | -10/Mines | Build established: Mutant 433 | -10/Mines | Discovered new exit (range 10) 443 | -10/Mines | Entered Materials 443 | -9/Materials | Evolved 2 slots: Propulsion x2 692 | -9/Materials | Discovered new exit (range 12) 748 | -9/Materials | Entered Mines 762 | -9/Mines | Assisted by bots powering up and referring to "LRC-V3" 792 | -9/Mines | Learned 4 Materials zone layouts 796 | -9/Mines | Met a Derelict bent on vengeance 850 | -9/Mines | Discovered new exit (range 8) 867 | -9/Mines | Entered Materials 867 | -8/Materials | Accompanied by 3 allies 867 | -8/Materials | Evolved 2 slots: Power x1, Utility x1 868 | -8/Materials | Identified exit to Factory 981 | -8/Materials | Entered Factory 981 | -7/Factory | Evolved 2 slots: Utility x2 995 | -7/Factory | Assembled infested ambush trap array 1081 | -7/Factory | System corruption reached 10% 1107 | -7/Factory | Self-destructed Last Messages --------------- 01021_ Particle Cannon destroyed. 01023_ R-06 Scavenger destroyed. 01039_ Structural Scanner destroyed. 01039_ System corrupted by crushing effect (+3). 01039_ Knocked back. 01046_ Gravmag System destroyed. 01050_ U-05 Engineer lays Concrete. 01053_ Knocked back. 01057_ System corrupted: Component data lost. 01067_ ALERT: Hostiles spotted, dispatching reinforcements to Terminal F006. 01074_ Particle Cannon destroyed. 01074_ System corrupted by crushing effect (+2). 01080_ Gravmag System destroyed. 01080_ System corrupted by crushing effect (+5). 01080_ Knocked back. 01087_ K-01 Serf system corrupted by crushing effect. 01088_ System corrupted: Matter fused (-5). 01088_ K-01 Serf system terminally corrupted. 01094_ Knocked back. Map ----- +----------------------------------------------------+ | ?????????????????????????????????????????????????? | | ?????????????????????????????????????????????????? | | ?????????????????????????????????????? ???????? | | ?????????????????????????????????????? ??????? | | ?????????????????????????????????????# ??????? | | ?????????????????????????????????????# ???#### | | ?????????????????????????????????????# ??? | | ?????????????????????????????????????#^ ?? | | ????????????????????????????????#+#??# """?""" | | ????????????????????????????????# #??# """"""" | | ????????????????????????????????# #??# """"""" | | ????????????????????????????????# #??# """"""" | | ??????????????????????????????### ####^ | | ??????????????????????????????# " " | | ??????????????????????????????# "Y" | | ??????????????????????????????# """ | | ?????????????????##?########### | | ?????????????????# # | | ?????????????????# """"""""" # ####/#### | | ?????????????????# # % # # | | ?????????????????# """"""""" # # """" # | | ?????????????????# # # """" # | | ?????????????????# !!! + # """" # | | ?????????????????# !!! a # # """" + | | ?????????????????# !! a # # """" # | | ?????????????????# @ ####### """" # | | ?????????????????# """"""""" #?????# # | | ?????????????????# #?????# # | | ?????????????????# #?????#"" # | | ?????????????????##############?????#"" # | | ????????????????????????????????????#"" # | | ????????????????????????????????????#"Y # | | ????????????????????????????????????#"" # | | ????????????????????????????????????#"" # | | ????????????????????????????????????#"" # | | ????????????????????????????????????# # | | ????????????????????????????????????######### | | ????????????????????????????????????????????? ?? | | ?????????????????????????????????????????????????? | | ?????????????????????????????????????????????????? | | ?????????????????????????????????????????????????? | | ?????????????????????????????????????????????????? | | ?????????????????????????????????????????????????? | | ?????????????????????????????????????????????????? | | ?????????????????????????????????????????????????? | | ?????????????????????????????????????????????????? | | ?????????????????????????????????????????????????? | | ?????????????????????????????????????????????????? | | ?????????????????????????????????????????????????? | | ?????????????????????????????????????????????????? | +----------------------------------------------------+ Best States ------------- Heat Dissipation 34 Energy Generation 27 Energy Capacity 580 Matter Stores 300 Matter Capacity 300 Sight Range 16 Terrain Scan Density 10 Armor Coverage 600 Evasion (%) 55 Item Schematics ----------------- None Robot Schematics ------------------ None Fabricated ------------ Nothing Alien Tech Used ----------------- None Achievements -------------- None Challenges ------------ None Game ------ Seed PointAssemblyBeam Manual? 0 Play Time 00:19:31 Cumulative 7.1 hours Start 2020.09.24 @ 20:25:56 End 2020.09.24 @ 20:43:35 Sessions 1 Manual Loads 0 Difficulty Rogue Special Mode None Game No. 30 Rogue 30 Adventurer 0 Explorer 0 Win Type - Total 0 Types 0/0/0/0/0/0/0/0/0 Lore% 7 Gallery% 13 Achievement% 10 Wizard Run 0 Options --------- ASCII 1 Keyboard 0 Movement Numpad Keybinds 0 Fullscreen 1 Font 18/X11 Map View 76x50 Tactical HUD 1 Map Filters NONE Filters NONE Steam 1 RUN: 89ea3f68-b43b-4464-bbef-a4def04bab91